[Event "January 2 Early 2024"]
[Site "https://www.chess.com"]
[Date "2024.01.02"]
[Round "11"]
[White "Gottstein, Claudius-Thomas"]
[Black "Larina, Maria"]
[Result "0-1"]
[Board "141"]
[TimeControl "180+1"]
[WhiteFideId "4653327"]
[BlackFideId "24113182"]
[WhiteElo "2204"]
[BlackElo "2301"]
[WhiteTeam "GER"]
[BlackTeam "FID"]
[WhiteClock "0:00:00"]
[BlackClock "0:00:31"]

1. Nf3 {[%clk 0:02:51]}  f5 {[%clk 0:02:59]} 2. g3 {[%clk 0:02:48]}  Nf6 {[%clk 0:02:59]} 3. Bg2 {[%clk 0:02:48]}  g6 {[%clk 0:03:00]} 4. O-O {[%clk 0:02:49]}  Bg7 {[%clk 0:03:00]} 5. d3 {[%clk 0:02:48]}  O-O {[%clk 0:03:01]} 6. c3 {[%clk 0:02:47]}  d6 {[%clk 0:03:01]} 7. Nbd2 {[%clk 0:02:46]}  e5 {[%clk 0:03:01]} 8. e4 {[%clk 0:02:46]}  Nc6 {[%clk 0:03:00]} 9. Ng5 {[%clk 0:02:41]}  Qe7 {[%clk 0:02:55]} 10. f4 {[%clk 0:02:35]}  h6 {[%clk 0:02:53]} 11. Qb3+ {[%clk 0:02:31]}  Kh8 {[%clk 0:02:52]} 12. Ngf3 {[%clk 0:02:32]}  Nh5 {[%clk 0:02:29]} 13. Nh4 {[%clk 0:02:24]}  Kh7 {[%clk 0:02:26]} 14. exf5 {[%clk 0:02:23]}  gxf5 {[%clk 0:02:20]} 15. fxe5 {[%clk 0:02:16]}  dxe5 {[%clk 0:02:06]} 16. Nc4 {[%clk 0:01:59]}  e4 {[%clk 0:01:38]} 17. dxe4 {[%clk 0:01:50]}  fxe4 {[%clk 0:01:38]} 18. Be3 {[%clk 0:01:48]}  a5 {[%clk 0:01:19]} 19. Rxf8 {[%clk 0:01:44]}  Bxf8 {[%clk 0:01:18]} 20. Qb5 {[%clk 0:01:33]}  Nf6 {[%clk 0:01:15]} 21. Nf5 {[%clk 0:01:27]}  Qe6 {[%clk 0:01:09]} 22. Rf1 {[%clk 0:01:16]}  Ng4 {[%clk 0:01:09]} 23. Nd4 {[%clk 0:01:09]}  Nxd4 {[%clk 0:01:08]} 24. Bxd4 {[%clk 0:01:09]}  Bd7 {[%clk 0:01:05]} 25. Bxe4+ {[%clk 0:00:41]}  Qxe4 {[%clk 0:01:00]} 26. Qxd7+ {[%clk 0:00:40]}  Be7 {[%clk 0:00:34]} 27. Rf7+ {[%clk 0:00:26]}  Kg6 {[%clk 0:00:34]} 28. Rg7+ {[%clk 0:00:21]}  Kh5 {[%clk 0:00:32]} 29. Qxe7 {[%clk 0:00:18]}  Qb1+ {[%clk 0:00:31]} 30. Kg2 {[%clk 0:00:17]}  Qc2+ {[%clk 0:00:30]} 31. Kf3 {[%clk 0:00:13]}  Nxh2+ {[%clk 0:00:30]} 32. Ke3 {[%clk 0:00:12]}  Qc1+ {[%clk 0:00:30]} 33. Kd3 {[%clk 0:00:12]}  Qf1+ {[%clk 0:00:30]} 34. Kc2 {[%clk 0:00:12]}  Qg2+ {[%clk 0:00:29]} 35. Kb3 {[%clk 0:00:12]}  a4+ {[%clk 0:00:30]} 36. Kb4 {[%clk 0:00:12]}  Qd5 {[%clk 0:00:28]} 37. Rg5+ {[%clk 0:00:10]}  hxg5 {[%clk 0:00:28]} 38. Qe5 {[%clk 0:00:08]}  c5+ {[%clk 0:00:28]} 39. Bxc5 {[%clk 0:00:08]}  Qd7 {[%clk 0:00:26]} 40. Qe2+ {[%clk 0:00:07]}  Ng4 {[%clk 0:00:25]} 41. Ne5 {[%clk 0:00:06]}  Qf5 {[%clk 0:00:20]} 42. Nxg4 {[%clk 0:00:06]}  Qxg4+ {[%clk 0:00:20]} 43. Qxg4+ {[%clk 0:00:05]}  Kxg4 {[%clk 0:00:21]} 44. Bd6 {[%clk 0:00:03]}  Kf5 {[%clk 0:00:20]} 45. c4 {[%clk 0:00:03]}  Ke6 {[%clk 0:00:20]} 46. c5 {[%clk 0:00:03]}  Kd5 {[%clk 0:00:21]} 47. Kb5 {[%clk 0:00:03]}  g4 {[%clk 0:00:20]} 48. Kb6 {[%clk 0:00:03]}  a3 {[%clk 0:00:20]} 49. bxa3 {[%clk 0:00:03]}  Rxa3 {[%clk 0:00:20]} 50. Kxb7 {[%clk 0:00:03]}  Rxa2 {[%clk 0:00:21]} 51. Kc7 {[%clk 0:00:03]}  Rb2 {[%clk 0:00:20]} 52. Kd7 {[%clk 0:00:03]}  Rc2 {[%clk 0:00:20]} 53. Ke7 {[%clk 0:00:03]}  Rc4 {[%clk 0:00:20]} 54. Kf6 {[%clk 0:00:03]}  Ke4 {[%clk 0:00:20]} 55. Kg5 {[%clk 0:00:03]}  Kf3 {[%clk 0:00:20]} 56. Kf5 {[%clk 0:00:03]}  Rc2 {[%clk 0:00:20]} 57. Ke6 {[%clk 0:00:02]}  Ke4 {[%clk 0:00:20]} 58. Kd7 {[%clk 0:00:03]}  Kd5 {[%clk 0:00:20]} 59. Ke7 {[%clk 0:00:03]}  Rc4 {[%clk 0:00:21]} 60. Kf6 {[%clk 0:00:03]}  Rc2 {[%clk 0:00:21]} 61. Kf5 {[%clk 0:00:04]}  Kc6 {[%clk 0:00:22]} 62. Kxg4 {[%clk 0:00:04]}  Kd7 {[%clk 0:00:22]} 63. Kf5 {[%clk 0:00:04]}  Rc4 {[%clk 0:00:22]} 64. g4 {[%clk 0:00:04]}  Rc2 {[%clk 0:00:23]} 65. g5 {[%clk 0:00:05]}  Rf2+ {[%clk 0:00:23]} 66. Kg6 {[%clk 0:00:05]}  Ke6 {[%clk 0:00:24]} 67. Kh6 {[%clk 0:00:05]}  Rf1 {[%clk 0:00:24]} 68. g6 {[%clk 0:00:05]}  Rh1+ {[%clk 0:00:24]} 69. Kg7 {[%clk 0:00:05]}  Rg1 {[%clk 0:00:25]} 70. Bf8 {[%clk 0:00:05]}  Rg2 {[%clk 0:00:24]} 71. Bd6 {[%clk 0:00:05]}  Kf5 {[%clk 0:00:24]} 72. Bf8 {[%clk 0:00:06]}  Rxg6+ {[%clk 0:00:25]} 73. Kf7 {[%clk 0:00:07]}  Rc6 {[%clk 0:00:25]} 74. Ke8 {[%clk 0:00:06]}  Ke4 {[%clk 0:00:26]} 75. Bd6 {[%clk 0:00:07]}  Kd5 {[%clk 0:00:27]} 76. Kd7 {[%clk 0:00:07]}  Ra6 {[%clk 0:00:27]} 77. Kc7 {[%clk 0:00:07]}  Rc6+ {[%clk 0:00:27]} 78. Kd7 {[%clk 0:00:08]}  Ra6 {[%clk 0:00:27]} 79. Kc7 {[%clk 0:00:08]}  Ra4 {[%clk 0:00:28]} 80. Kd7 {[%clk 0:00:09]}  Rc4 {[%clk 0:00:28]} 81. Kc7 {[%clk 0:00:09]}  Ke4 {[%clk 0:00:29]} 82. Kd7 {[%clk 0:00:09]}  Kd3 {[%clk 0:00:29]} 83. Kc6 {[%clk 0:00:09]}  Kc2 {[%clk 0:00:30]} 84. Be7 {[%clk 0:00:10]}  Kb3 {[%clk 0:00:30]} 85. Bd6 {[%clk 0:00:11]}  Ka4 {[%clk 0:00:30]} 86. Be7 {[%clk 0:00:11]}  Ka5 {[%clk 0:00:30]} 87. Bd6 {[%clk 0:00:12]}  Ka6 {[%clk 0:00:31]} 88. Be7 {[%clk 0:00:12]}  Ka7 {[%clk 0:00:31]} 89. Bd6 {[%clk 0:00:13]}  Ka6 {[%clk 0:00:32]} 90. Kd5 {[%clk 0:00:13]}  Rg4 {[%clk 0:00:32]} 91. Kc6 {[%clk 0:00:13]}  Rg8 {[%clk 0:00:32]} 92. Kc7 {[%clk 0:00:13]}  Ka7 {[%clk 0:00:32]} 93. Kc6 {[%clk 0:00:13]}  Rc8+ {[%clk 0:00:32]} 94. Kd7 {[%clk 0:00:13]}  Kb7 {[%clk 0:00:32]} 95. c6+ {[%clk 0:00:12]}  Rxc6 {[%clk 0:00:32]} 96. Be7 {[%clk 0:00:12]}  Rc7+ {[%clk 0:00:33]} 97. Kd6 {[%clk 0:00:12]}  Rc4 {[%clk 0:00:33]} 98. Kd7 {[%clk 0:00:12]}  Rc2 {[%clk 0:00:33]} 99. Bd6 {[%clk 0:00:12]}  Rd2 {[%clk 0:00:34]} 100. Ke6 {[%clk 0:00:12]}  Kc6 {[%clk 0:00:34]} 101. Be7 {[%clk 0:00:13]}  Re2+ {[%clk 0:00:35]} 102. Kf7 {[%clk 0:00:12]}  Kd7 {[%clk 0:00:35]} 103. Bb4 {[%clk 0:00:12]}  Rf2+ {[%clk 0:00:36]} 104. Kg6 {[%clk 0:00:12]}  Ke6 {[%clk 0:00:36]} 105. Kg5 {[%clk 0:00:11]}  Rg2+ {[%clk 0:00:37]} 106. Kf4 {[%clk 0:00:11]}  Kd5 {[%clk 0:00:37]} 107. Kf3 {[%clk 0:00:11]}  Rg6 {[%clk 0:00:38]} 108. Kf2 {[%clk 0:00:11]}  Ke4 {[%clk 0:00:38]} 109. Bc5 {[%clk 0:00:10]}  Kd3 {[%clk 0:00:38]} 110. Kf3 {[%clk 0:00:10]}  Rg5 {[%clk 0:00:38]} 111. Bb6 {[%clk 0:00:10]}  Rf5+ {[%clk 0:00:38]} 112. Kg2 {[%clk 0:00:09]}  Ke4 {[%clk 0:00:38]} 113. Bc7 {[%clk 0:00:09]}  Rf3 {[%clk 0:00:38]} 114. Kg1 {[%clk 0:00:08]}  Kd3 {[%clk 0:00:39]} 115. Kg2 {[%clk 0:00:08]}  Ke2 {[%clk 0:00:39]} 116. Kg1 {[%clk 0:00:08]}  Rf5 {[%clk 0:00:38]} 117. Kg2 {[%clk 0:00:09]}  Rg5+ {[%clk 0:00:39]} 118. Kh1 {[%clk 0:00:09]}  Kf3 {[%clk 0:00:38]} 119. Bd6 {[%clk 0:00:08]}  Rg4 {[%clk 0:00:37]} 120. Bc7 {[%clk 0:00:08]}  Kf2 {[%clk 0:00:36]} 121. Bd6 {[%clk 0:00:07]}  Rh4+ {[%clk 0:00:35]} 122. Bh2 {[%clk 0:00:07]}  Kf3 {[%clk 0:00:35]} 123. Kg1 {[%clk 0:00:07]}  Rh3 {[%clk 0:00:36]} 124. Bd6 {[%clk 0:00:06]}  Rh6 {[%clk 0:00:35]} 125. Bc7 {[%clk 0:00:06]}  Rc6 {[%clk 0:00:33]} 126. Be5 {[%clk 0:00:05]}  Rc2 {[%clk 0:00:31]} 127. Kh1 {[%clk 0:00:05]}  Re2 {[%clk 0:00:29]} 128. Bd4 {[%clk 0:00:05]}  Kg3 {[%clk 0:00:29]} 129. Bc5 {[%clk 0:00:04]}  Re1+ {[%clk 0:00:28]} 130. Bg1 {[%clk 0:00:04]}  Kf3 {[%clk 0:00:27]} 131. Kh2 {[%clk 0:00:04]}  Re2+ {[%clk 0:00:28]} 132. Kh1 {[%clk 0:00:04]}  Rg2 {[%clk 0:00:27]} 133. Bb6 {[%clk 0:00:04]}  Rg4 {[%clk 0:00:27]} 134. Ba7 {[%clk 0:00:03]}  Rg7 {[%clk 0:00:27]} 135. Bb8 {[%clk 0:00:03]}  Rh7+ {[%clk 0:00:28]} 136. Bh2 {[%clk 0:00:03]}  Rg7 {[%clk 0:00:29]} 137. Bd6 {[%clk 0:00:02]}  Kf2 {[%clk 0:00:29]} 138. Bh2 {[%clk 0:00:02]}  Rg6 {[%clk 0:00:29]} 139. Be5 {[%clk 0:00:02]}  Rg1+ {[%clk 0:00:29]} 140. Kh2 {[%clk 0:00:01]}  Rg2+ {[%clk 0:00:30]} 141. Kh1 {[%clk 0:00:01]}  Rg6 {[%clk 0:00:31]} 142. Bd4+ {[%clk 0:00:01]}  Kf3 {[%clk 0:00:31]} 143. Be5 {[%clk 0:00:00]}  Rh6+ {[%clk 0:00:31]} 0-1

[Event "January 2 Early 2024"]
[Site "https://www.chess.com"]
[Date "2024.01.02"]
[Round "11"]
[White "Khegay, Yuliya"]
[Black "Diaz Herquinio, Brahian"]
[Result "1-0"]
[Board "149"]
[TimeControl "180+1"]
[WhiteFideId "14205394"]
[BlackFideId "3809480"]
[WhiteElo "2124"]
[BlackElo "2388"]
[WhiteTeam "UZB"]
[BlackTeam "PER"]
[WhiteClock "0:00:07"]
[BlackClock "0:01:07"]

1. e4 {[%clk 0:03:00]}  c5 {[%clk 0:03:00]} 2. Nf3 {[%clk 0:02:58]}  d6 {[%clk 0:03:00]} 3. Bb5+ {[%clk 0:02:58]}  Nd7 {[%clk 0:02:59]} 4. d4 {[%clk 0:02:57]}  cxd4 {[%clk 0:03:00]} 5. Qxd4 {[%clk 0:02:58]}  a6 {[%clk 0:03:00]} 6. Bxd7+ {[%clk 0:02:58]}  Bxd7 {[%clk 0:03:01]} 7. O-O {[%clk 0:02:58]}  e5 {[%clk 0:03:01]} 8. Qe3 {[%clk 0:02:55]}  Nf6 {[%clk 0:02:59]} 9. c4 {[%clk 0:02:54]}  b5 {[%clk 0:02:47]} 10. cxb5 {[%clk 0:02:22]}  axb5 {[%clk 0:02:43]} 11. Rd1 {[%clk 0:02:21]}  Be7 {[%clk 0:02:41]} 12. Nc3 {[%clk 0:02:06]}  Qb8 {[%clk 0:02:35]} 13. Qd3 {[%clk 0:01:18]}  O-O {[%clk 0:02:30]} 14. Bg5 {[%clk 0:01:09]}  b4 {[%clk 0:02:22]} 15. Bxf6 {[%clk 0:01:03]}  Bxf6 {[%clk 0:02:21]} 16. Nd5 {[%clk 0:00:47]}  Bd8 {[%clk 0:02:09]} 17. a3 {[%clk 0:00:45]}  bxa3 {[%clk 0:02:07]} 18. Rxa3 {[%clk 0:00:45]}  Rxa3 {[%clk 0:02:00]} 19. bxa3 {[%clk 0:00:46]}  f5 {[%clk 0:01:52]} 20. Rb1 {[%clk 0:00:34]}  Qa7 {[%clk 0:01:46]} 21. Ne3 {[%clk 0:00:20]}  fxe4 {[%clk 0:01:41]} 22. Qxe4 {[%clk 0:00:20]}  Bb6 {[%clk 0:01:35]} 23. Qd5+ {[%clk 0:00:12]}  Kh8 {[%clk 0:01:35]} 24. Rb3 {[%clk 0:00:11]}  Bc5 {[%clk 0:01:26]} 25. h3 {[%clk 0:00:07]}  Bxh3 {[%clk 0:01:22]} 26. gxh3 {[%clk 0:00:07]}  Rxf3 {[%clk 0:01:21]} 27. Qxf3 {[%clk 0:00:07]}  h6 {[%clk 0:01:15]} 28. Rb7 {[%clk 0:00:07]}  Qa8 {[%clk 0:01:11]} 29. Qf7 {[%clk 0:00:06]}  Qg8 {[%clk 0:01:11]} 30. Qxg8+ {[%clk 0:00:06]}  Kxg8 {[%clk 0:01:07]} 31. a4 {[%clk 0:00:07]} 1-0

[Event "January 2 Early 2024"]
[Site "https://www.chess.com"]
[Date "2024.01.02"]
[Round "11"]
[White "Jing, Andrew"]
[Black "Gulamirian, Korun"]
[Result "0-1"]
[Board "153"]
[TimeControl "180+1"]
[WhiteFideId "30984076"]
[BlackFideId "4144899"]
[WhiteElo "2139"]
[BlackElo "1587"]
[WhiteTeam "USA"]
[BlackTeam "RUS"]
[WhiteClock "0:00:43"]
[BlackClock "0:00:28"]

1. e4 {[%clk 0:03:00]}  e5 {[%clk 0:02:55]} 2. Nf3 {[%clk 0:03:00]}  Nc6 {[%clk 0:02:54]} 3. Bc4 {[%clk 0:02:58]}  Nf6 {[%clk 0:02:53]} 4. d3 {[%clk 0:02:58]}  Bc5 {[%clk 0:02:25]} 5. O-O {[%clk 0:02:54]}  h6 {[%clk 0:02:25]} 6. c3 {[%clk 0:02:41]}  d6 {[%clk 0:02:25]} 7. d4 {[%clk 0:02:39]}  exd4 {[%clk 0:02:16]} 8. cxd4 {[%clk 0:02:40]}  Bb6 {[%clk 0:02:15]} 9. Nc3 {[%clk 0:02:40]}  O-O {[%clk 0:02:14]} 10. Be3 {[%clk 0:02:39]}  Bg4 {[%clk 0:02:12]} 11. Be2 {[%clk 0:02:39]}  d5 {[%clk 0:02:04]} 12. e5 {[%clk 0:02:36]}  Ne4 {[%clk 0:02:03]} 13. h3 {[%clk 0:02:36]}  Nxc3 {[%clk 0:02:02]} 14. bxc3 {[%clk 0:02:36]}  Be6 {[%clk 0:01:57]} 15. Bd3 {[%clk 0:02:20]}  f5 {[%clk 0:01:56]} 16. exf6 {[%clk 0:02:17]}  Qxf6 {[%clk 0:01:54]} 17. Qe2 {[%clk 0:02:16]}  Bf5 {[%clk 0:01:53]} 18. Bxf5 {[%clk 0:02:15]}  Qxf5 {[%clk 0:01:53]} 19. Rae1 {[%clk 0:02:16]}  Rae8 {[%clk 0:01:52]} 20. Qd2 {[%clk 0:02:16]}  Na5 {[%clk 0:01:49]} 21. Qc1 {[%clk 0:02:12]}  Nc4 {[%clk 0:01:49]} 22. Nd2 {[%clk 0:02:12]}  Qd3 {[%clk 0:01:33]} 23. Nxc4 {[%clk 0:01:51]}  Qxc4 {[%clk 0:01:32]} 24. Bxh6 {[%clk 0:01:50]}  Rxe1 {[%clk 0:01:30]} 25. Rxe1 {[%clk 0:01:48]}  Qxa2 {[%clk 0:01:28]} 26. Be3 {[%clk 0:01:22]}  Qc4 {[%clk 0:01:15]} 27. Qd2 {[%clk 0:01:21]}  c5 {[%clk 0:01:10]} 28. dxc5 {[%clk 0:01:20]}  Bxc5 {[%clk 0:01:09]} 29. Bxc5 {[%clk 0:01:20]}  Qxc5 {[%clk 0:01:09]} 30. Qd4 {[%clk 0:01:21]}  Qxd4 {[%clk 0:01:08]} 31. cxd4 {[%clk 0:01:22]}  Rf7 {[%clk 0:00:59]} 32. Re8+ {[%clk 0:01:21]}  Kh7 {[%clk 0:00:59]} 33. Rd8 {[%clk 0:01:20]}  Kg6 {[%clk 0:00:52]} 34. Rxd5 {[%clk 0:01:08]}  Kf6 {[%clk 0:00:52]} 35. Rd8 {[%clk 0:00:52]}  Ke6 {[%clk 0:00:51]} 36. d5+ {[%clk 0:00:51]}  Ke5 {[%clk 0:00:50]} 37. g3 {[%clk 0:00:47]}  a5 {[%clk 0:00:48]} 38. f4+ {[%clk 0:00:45]}  Kd4 {[%clk 0:00:47]} 39. d6 {[%clk 0:00:45]}  Kc5 {[%clk 0:00:44]} 40. d7 {[%clk 0:00:45]}  Kc6 {[%clk 0:00:44]} 41. Ra8 {[%clk 0:00:45]}  Kxd7 {[%clk 0:00:44]} 42. Rxa5 {[%clk 0:00:46]}  Kc6 {[%clk 0:00:44]} 43. Kg2 {[%clk 0:00:46]}  b5 {[%clk 0:00:44]} 44. Ra8 {[%clk 0:00:46]}  b4 {[%clk 0:00:43]} 45. Ra1 {[%clk 0:00:45]}  Kc5 {[%clk 0:00:41]} 46. Kf3 {[%clk 0:00:45]}  Kd4 {[%clk 0:00:41]} 47. g4 {[%clk 0:00:45]}  b3 {[%clk 0:00:41]} 48. Ra4+ {[%clk 0:00:45]}  Kc3 {[%clk 0:00:40]} 49. Ra1 {[%clk 0:00:43]}  b2 {[%clk 0:00:40]} 50. Rh1 {[%clk 0:00:43]}  Rb7 {[%clk 0:00:36]} 51. f5 {[%clk 0:00:42]}  b1=Q {[%clk 0:00:36]} 52. Rxb1 {[%clk 0:00:42]}  Rxb1 {[%clk 0:00:35]} 53. Kf4 {[%clk 0:00:43]}  Kd4 {[%clk 0:00:35]} 54. Kg5 {[%clk 0:00:44]}  Ke5 {[%clk 0:00:35]} 55. h4 {[%clk 0:00:45]}  Rb6 {[%clk 0:00:32]} 56. h5 {[%clk 0:00:45]}  Rf6 {[%clk 0:00:30]} 57. Kh4 {[%clk 0:00:44]}  Kf4 {[%clk 0:00:28]} 58. Kh3 {[%clk 0:00:45]}  Kg5 {[%clk 0:00:28]} 59. Kg3 {[%clk 0:00:43]}  Ra6 {[%clk 0:00:28]} 0-1

[Event "January 2 Early 2024"]
[Site "https://www.chess.com"]
[Date "2024.01.02"]
[Round "11"]
[White "Cornelison, Paul"]
[Black "Montano Vicente, Guadalupe"]
[Result "1/2-1/2"]
[Board "154"]
[TimeControl "180+1"]
[WhiteFideId "2004186"]
[BlackFideId "5181399"]
[WhiteElo "1963"]
[BlackElo "2151"]
[WhiteTeam "USA"]
[BlackTeam "MEX"]
[WhiteClock "0:00:30"]
[BlackClock "0:00:16"]

1. e4 {[%clk 0:03:00]}  c5 {[%clk 0:02:57]} 2. Nf3 {[%clk 0:03:00]}  d6 {[%clk 0:02:54]} 3. d4 {[%clk 0:03:00]}  cxd4 {[%clk 0:02:51]} 4. c3 {[%clk 0:03:00]}  dxc3 {[%clk 0:02:30]} 5. Nxc3 {[%clk 0:03:01]}  Nf6 {[%clk 0:02:29]} 6. Bc4 {[%clk 0:03:01]}  e6 {[%clk 0:02:27]} 7. Bb3 {[%clk 0:03:00]}  Nc6 {[%clk 0:02:25]} 8. O-O {[%clk 0:03:00]}  Be7 {[%clk 0:02:18]} 9. Bg5 {[%clk 0:02:55]}  O-O {[%clk 0:02:14]} 10. Qe2 {[%clk 0:02:53]}  h6 {[%clk 0:02:09]} 11. Bf4 {[%clk 0:02:49]}  a6 {[%clk 0:02:07]} 12. Rfd1 {[%clk 0:02:46]}  Ne8 {[%clk 0:01:53]} 13. Rac1 {[%clk 0:02:42]}  Qa5 {[%clk 0:01:49]} 14. e5 {[%clk 0:02:21]}  dxe5 {[%clk 0:01:35]} 15. Bxe5 {[%clk 0:02:16]}  Nxe5 {[%clk 0:01:30]} 16. Nxe5 {[%clk 0:02:15]}  Nf6 {[%clk 0:01:23]} 17. h3 {[%clk 0:01:21]}  Qb4 {[%clk 0:00:42]} 18. Nd3 {[%clk 0:01:15]}  Qh4 {[%clk 0:00:38]} 19. Kh2 {[%clk 0:00:46]}  b5 {[%clk 0:00:32]} 20. g3 {[%clk 0:00:46]}  Qh5 {[%clk 0:00:26]} 21. Nf4 {[%clk 0:00:46]}  Qxe2 {[%clk 0:00:25]} 22. Ncxe2 {[%clk 0:00:46]}  e5 {[%clk 0:00:20]} 23. Ng6 {[%clk 0:00:43]}  Re8 {[%clk 0:00:18]} 24. Nxe5 {[%clk 0:00:40]}  Be6 {[%clk 0:00:14]} 25. Bxe6 {[%clk 0:00:38]}  fxe6 {[%clk 0:00:14]} 26. Rc7 {[%clk 0:00:37]}  Rac8 {[%clk 0:00:13]} 27. Rdc1 {[%clk 0:00:35]}  Rxc7 {[%clk 0:00:13]} 28. Rxc7 {[%clk 0:00:36]}  Bd6 {[%clk 0:00:13]} 29. Ra7 {[%clk 0:00:30]}  Bxe5 {[%clk 0:00:13]} 30. Rxa6 {[%clk 0:00:31]}  Bxb2 {[%clk 0:00:13]} 31. Nf4 {[%clk 0:00:31]}  e5 {[%clk 0:00:13]} 32. Ng6 {[%clk 0:00:30]}  Bd4 {[%clk 0:00:12]} 33. Ra3 {[%clk 0:00:28]}  Bxf2 {[%clk 0:00:12]} 34. Rf3 {[%clk 0:00:28]}  Bd4 {[%clk 0:00:12]} 35. g4 {[%clk 0:00:27]}  e4 {[%clk 0:00:13]} 36. Rf5 {[%clk 0:00:28]}  e3 {[%clk 0:00:13]} 37. Nf4 {[%clk 0:00:28]}  e2 {[%clk 0:00:13]} 38. Nxe2 {[%clk 0:00:28]}  Rxe2+ {[%clk 0:00:14]} 39. Kg3 {[%clk 0:00:28]}  Be5+ {[%clk 0:00:14]} 40. Kf3 {[%clk 0:00:28]}  Re1 {[%clk 0:00:14]} 41. h4 {[%clk 0:00:28]}  Re4 {[%clk 0:00:14]} 42. g5 {[%clk 0:00:28]}  hxg5 {[%clk 0:00:13]} 43. hxg5 {[%clk 0:00:28]}  Rf4+ {[%clk 0:00:14]} 44. Rxf4 {[%clk 0:00:27]}  Bxf4 {[%clk 0:00:15]} 45. gxf6 {[%clk 0:00:27]}  Be5 {[%clk 0:00:14]} 46. fxg7 {[%clk 0:00:27]}  Kxg7 {[%clk 0:00:14]} 47. Ke4 {[%clk 0:00:28]}  Bc3 {[%clk 0:00:14]} 48. Kd5 {[%clk 0:00:27]}  b4 {[%clk 0:00:15]} 49. Kc4 {[%clk 0:00:28]}  Kf6 {[%clk 0:00:15]} 50. a3 {[%clk 0:00:28]}  bxa3 {[%clk 0:00:15]} 51. Kxc3 {[%clk 0:00:29]}  Ke5 {[%clk 0:00:16]} 52. Kb3 {[%clk 0:00:29]}  a2 {[%clk 0:00:16]} 53. Kxa2 {[%clk 0:00:30]} 1/2-1/2

[Event "January 2 Early 2024"]
[Site "https://www.chess.com"]
[Date "2024.01.02"]
[Round "11"]
[White "Todorovic, Bojan"]
[Black "Murthy, Pappu"]
[Result "0-1"]
[Board "156"]
[TimeControl "180+1"]
[WhiteFideId "917087"]
[BlackFideId "2013401"]
[WhiteElo "2357"]
[BlackElo "1976"]
[WhiteTeam "SRB"]
[BlackTeam "USA"]
[WhiteClock "0:00:00"]
[BlackClock "0:00:11"]

1. Nf3 {[%clk 0:02:59]}  Nf6 {[%clk 0:02:32]} 2. c4 {[%clk 0:02:57]}  e6 {[%clk 0:02:31]} 3. g3 {[%clk 0:02:56]}  d5 {[%clk 0:02:32]} 4. Bg2 {[%clk 0:02:56]}  Be7 {[%clk 0:02:32]} 5. O-O {[%clk 0:02:56]}  O-O {[%clk 0:02:32]} 6. d4 {[%clk 0:02:56]}  c6 {[%clk 0:02:31]} 7. Nc3 {[%clk 0:02:52]}  Nbd7 {[%clk 0:02:31]} 8. Qd3 {[%clk 0:02:44]}  b6 {[%clk 0:02:18]} 9. e4 {[%clk 0:02:28]}  Ba6 {[%clk 0:02:15]} 10. b3 {[%clk 0:02:24]}  Rc8 {[%clk 0:02:07]} 11. Re1 {[%clk 0:02:15]}  Bb4 {[%clk 0:01:52]} 12. Nd2 {[%clk 0:02:01]}  dxc4 {[%clk 0:01:46]} 13. Nxc4 {[%clk 0:01:56]}  Nc5 {[%clk 0:01:37]} 14. Qd2 {[%clk 0:01:43]}  Ncd7 {[%clk 0:01:06]} 15. a3 {[%clk 0:01:32]}  Bxc3 {[%clk 0:01:03]} 16. Qxc3 {[%clk 0:01:32]}  Re8 {[%clk 0:00:57]} 17. Bb2 {[%clk 0:01:23]}  c5 {[%clk 0:00:48]} 18. Nd6 {[%clk 0:01:18]}  cxd4 {[%clk 0:00:40]} 19. Qxd4 {[%clk 0:01:18]}  e5 {[%clk 0:00:39]} 20. Qb4 {[%clk 0:01:09]}  Rc2 {[%clk 0:00:37]} 21. Nxe8 {[%clk 0:01:06]}  Rxb2 {[%clk 0:00:36]} 22. Qc3 {[%clk 0:00:39]}  Re2 {[%clk 0:00:20]} 23. Rxe2 {[%clk 0:00:37]}  Bxe2 {[%clk 0:00:21]} 24. Nxf6+ {[%clk 0:00:35]}  Nxf6 {[%clk 0:00:21]} 25. Qe3 {[%clk 0:00:29]}  Bb5 {[%clk 0:00:19]} 26. Rc1 {[%clk 0:00:28]}  h6 {[%clk 0:00:19]} 27. Bh3 {[%clk 0:00:26]}  Kh7 {[%clk 0:00:17]} 28. Bf5+ {[%clk 0:00:24]}  g6 {[%clk 0:00:17]} 29. Bh3 {[%clk 0:00:24]}  Qd6 {[%clk 0:00:17]} 30. b4 {[%clk 0:00:23]}  Bc6 {[%clk 0:00:16]} 31. Bg2 {[%clk 0:00:21]}  Bb7 {[%clk 0:00:16]} 32. Qe2 {[%clk 0:00:16]}  Kg7 {[%clk 0:00:16]} 33. Rd1 {[%clk 0:00:16]}  Qc6 {[%clk 0:00:15]} 34. Qd3 {[%clk 0:00:11]}  Qc7 {[%clk 0:00:13]} 35. Qd6 {[%clk 0:00:09]}  Qc2 {[%clk 0:00:11]} 36. Rf1 {[%clk 0:00:07]}  Qb2 {[%clk 0:00:10]} 37. Qc7 {[%clk 0:00:05]}  Ba6 {[%clk 0:00:11]} 38. Qxa7 {[%clk 0:00:03]}  Bxf1 {[%clk 0:00:09]} 39. Bxf1 {[%clk 0:00:02]}  Qc1 {[%clk 0:00:10]} 40. Qxb6 {[%clk 0:00:00]}  Ng4 {[%clk 0:00:11]} 0-1